Cogmind - Beta 11 X8 @@@ ROGUE MODE // 2021.12.07 @ 23:18:32 Player: T1-4MT Result: Destroyed by S-10 Pest with Light Assault Rifle Performance ------------- Evolutions (0) 0 Regions Visited (2) 400 Robots Destroyed (22) 110 Value Destroyed (572) 572 Prototype IDs (0) 0 Alien Tech Used (0) 0 Bonus (0) 0 TOTAL SCORE: 1082 Bonus ------- None Cogmind --------- Core Integrity 0/250 Matter 300/300 Energy 250/250 System Corruption 0% Temperature Cool (0) Movement Rolling (155) Ox5 Location -10/Mines Parts ------- > --- POWER (1) -------- Ion Engine > --- PROPULSION (2) --- Aluminum Leg Wheel > --- UTILITY (2) ------ High-capacity Storage Unit Signal Interpreter > --- WEAPON (2) ------- EM Shotgun EM Shotgun > --- INVENTORY (20) --- Ion Engine Ion Engine Improved Heat Sink Huge Storage Unit High-capacity Matter Pod (200) Visual Processing Unit Sensor Array Light Armor Plating Medium Armor Plating Medium Armor Plating Medium Armor Plating Medium Armor Plating EM Shotgun Particle Gun Particle Gun Peak State ------------ > --- POWER ------------ Light Ion Engine > --- PROPULSION ------- Light Treads Light Treads > --- UTILITY ---------- High-capacity Storage Unit Signal Interpreter > --- WEAPON ----------- EM Shotgun EM Shotgun > --- INVENTORY -------- Ion Engine Ion Engine Light Treads Wheel Compact Wheel Compact Wheel Huge Storage Unit High-capacity Matter Pod Visual Processing Unit Sensor Array Light Armor Plating Medium Armor Plating Medium Armor Plating Medium Armor Plating Medium Armor Plating EM Shotgun EM Shotgun Particle Gun Assault Rifle [Rating: 11] Favorites ----------- Power Light Ion Engine Engine Light Ion Engine Propulsion Light Treads Treads Light Treads Leg Aluminum Leg Wheel Compact Wheel Utility Signal Interpreter Storage High-capacity Storage Unit Processor Signal Interpreter Weapon Assault Rifle Energy Gun EM Shotgun Ballistic Gun Assault Rifle Build | -11 -10 -10 ------- Run | Scr Mat Min Slots Evolved . | . . . Power . | . . . Propulsion . | . . . Utility . | . . . Weapon . | . . . Parts Attached 22 | 6 4 12 Power 3 | 1 1 1 Engine 3 | 1 1 1 Core . | . . . Reactor . | . . . Propulsion 7 | 2 . 5 Treads 3 | 2 . 1 Leg 1 | . . 1 Wheel 3 | . . 3 Hover . | . . . Flight . | . . . Utility 4 | 1 3 . Device . | . . . Storage 2 | 1 1 . Processor 2 | . 2 . Hackware . | . . . Protection . | . . . Artifact . | . . . Weapon 8 | 2 . 6 Energy Gun 5 | . . 5 Energy Cannon . | . . . Ballistic Gun 3 | 2 . 1 Ballistic Cannon . | . . . Launcher . | . . . Special Weapon . | . . . Impact Weapon . | . . . Slashing Weapon . | . . . Piercing Weapon . | . . . Special Melee Weapon . | . . . Unidentified Prototypes . | . . . Parts Lost 11 | . 1 10 Power 1 | . . 1 Propulsion 5 | . . 5 Utility 1 | . 1 . Weapon 4 | . . 4 Highest Loss Streak 4 | . 1 4 Average Slot Usage (%) 97 | . 98 96 Engine 13 | . 14 13 Treads 23 | . 28 17 Wheel 3 | . . 8 Storage 14 | . 14 14 Processor 13 | . 12 14 Energy Gun 8 | . . 21 Ballistic Gun 18 | . 28 4 Naked Turns . | . . . Heaviest Build 51 | 11 46 51 Greatest Support 40 | 40 40 40 Greatest Overweight (x) 5 | . 1 5 Average Overweight (x) 1 | . . 2 Largest Inventory Capacity 20 | 8 20 20 Average Capacity 17 | 7 16 20 Most Carried 20 | 6 20 20 Average Carried 13 | 3 13 16 Final Capacity 20 | 8 20 20 Final Carried 20 | 6 20 15 Class Distribution -------------------- 100% | Mutant Dominant Class ---------------- Mutant | -10/Materials Mutant | -10/Mines Resources | -11 -10 -10 ----------- Run | Scr Mat Min Matter Collected 822 | 223 461 138 Remotely . | . . . Salvage Created 791 | . 514 277 Parts 55 | . 37 18 Haulers Intercepted . | . . . Recyclers Shooed . | . . . Parts Field Recycled . | . . . Retrieved Matter . | . . . Parts Self-Destructed . | . . . Prevented . | . . . Kills | -11 -10 -10 ------- Run | Scr Mat Min Combat Hostiles Destroyed 20 | . 11 9 Guns 18 | . 11 7 AOE 2 | . . 2 Classes Destroyed 4 | . 4 . Recycler 1 | . 1 . Watcher 1 | . 1 . Swarmer 8 | . 3 5 Grunt 12 | . 8 4 Best Kill Streak 3 | . 3 3 Combat Bots Only 3 | . 3 3 Max Kills in Single Turn 2 | . 2 2 Gunslinging . | . . . Exploded 2 | . . 2 Melee . | . . . Uniques/NPCs Destroyed . | . . . Combat | -11 -10 -10 -------- Run | Scr Mat Min Damage Taken 1356 | . 452 904 Core 254 | . 43 211 Absorbed by Shields . | . . . Core Remaining (%) 100 | 100 . . Volleys Fired 76 | . 50 26 Largest 2 | . 2 2 Hottest 90 | . 40 90 Shots Fired 144 | . 100 44 Gun 144 | . 100 44 Cannon . | . . . Launcher . | . . . Special . | . . . Kinetic 112 | . 100 12 Thermal 3 | . . 3 Explosive . | . . . Electromagnetic 29 | . . 29 Robot Hit Streak 8 | . 7 8 Robot Miss Streak 8 | . 3 8 Penetration Max . | . . . Secondary Targets 2 | . 1 1 Max Gunslinging Chain 1 | . 1 1 Shots Hit Robots 86 | . 55 31 Core Hits 45 | . 27 18 Critical Kills 1 | . 1 . Critical Parts Destroyed . | . . . Critical Strikes 1 | . 1 . Destroy 1 | . 1 . Melee Attacks . | . . . Impact . | . . . Slashing . | . . . Piercing . | . . . Sneak Attacks . | . . . Combat Hostiles . | . . . Follow-up Attacks . | . . . Damage Inflicted 1157 | . 664 493 Guns 1075 | . 664 411 Cannons . | . . . Explosions 82 | . . 82 Melee . | . . . Ramming . | . . . Kinetic 763 | . 664 99 Thermal 130 | . . 130 Explosive . | . . . Electromagnetic 264 | . . 264 Impact . | . . . Slashing . | . . . Piercing . | . . . Highest Corruption . | . . . Average Corruption . | . . . Corruption Purged . | . . . Overload Shots . | . . . Overflow Damage . | . . . Projectiles . | . . . Explosions . | . . . Melee . | . . . Knockbacks . | . . . Impact . | . . . Kinetic . | . . . Secondary . | . . . Self-Inflicted Damage 4 | . . 4 Shots 1 | . . 1 Rammed . | . . . Targets Rammed . | . . . Kicked . | . . . Crushed . | . . . Highest Temperature 207 | . 12 207 Average Temperature 43 | . 7 60 Received Heat Transfer 468 | . 219 249 Siege Activations . | . . . Robots Corrupted . | . . . Combat Hostiles . | . . . Parts Fried . | . . . Impact Corruptions . | . . . Robots Melted . | . . . Combat Hostiles . | . . . Parts Melted . | . . . Heat Transferred 111 | . . 111 Parts Sabotaged . | . . . Parts Stolen . | . . . Parts Stripped . | . . . Power Chain Reactions 1 | . . 1 Missiles Intercepted . | . . . Alert | -11 -10 -10 ------- Run | Scr Mat Min Peak Influence 133 | . 130 133 Initial 48 | . . 48 Average 59 | . 51 77 Maximum Alert Level . | . . . Low Security (%) 100 | 100 100 100 Level 1 . | . . . Level 2 . | . . . Level 3 . | . . . Level 4 . | . . . Level 5 . | . . . High Security . | . . . Max Security . | . . . Squads Dispatched 1 | . 1 . Investigation . | . . . Extermination . | . . . Reinforcement 1 | . 1 . Assault . | . . . Garrison . | . . . Intercept . | . . . Construction Impeded . | . . . Haulers Reinforced . | . . . Active Scanning Responses . | . . . Cargo Convoy Interrupts . | . . . Stealth | -11 -10 -10 --------- Run | Scr Mat Min Distress Signals 2 | . 2 . Communications Jammed . | . . . Distress Signals . | . . . Times Spotted 34 | . 21 13 Peak Tracking Total 4 | . 4 3 Tactical Retreats 1 | . . 1 Traps | -11 -10 -10 ------- Run | Scr Mat Min Traps Triggered 1 | . 1 . Indirectly . | . . . Trap Hack Attempts . | . . . Triggered . | . . . Disarmed . | . . . Reprogrammed . | . . . Reused . | . . . Traps Extracted . | . . . Installed . | . . . Triggered . | . . . Machines | -11 -10 -10 ---------- Run | Scr Mat Min Machines Disabled 1 | . 1 . Max in Single Turn 1 | . 1 . Machines Sabotaged . | . . . Garrisons Compromised . | . . . Overloaded Fab Kills . | . . . Hacking | -11 -10 -10 --------- Run | Scr Mat Min Machines Accessed 5 | . 5 . Terminals 5 | . 5 . Fabricators . | . . . Repair Stations . | . . . Recycling Units . | . . . Scanalyzers . | . . . Garrison Access . | . . . Total Hacks 13 | . 13 . Successful 4 | . 4 . Failed 9 | . 9 . Catastrophic . | . . . Database Lockouts . | . . . Manual 8 | . 8 . Terminals 13 | . 13 . Fabricators . | . . . Repair Stations . | . . . Recycling Units . | . . . Scanalyzers . | . . . Garrison Access . | . . . Terminal Hacks 4 | . 4 . Record 2 | . 2 . Branch Access Points 1 | . 1 . Zone Layout 1 | . 1 . Fabricator Hacks . | . . . Repair Station Hacks . | . . . Recycling Unit Hacks . | . . . Scanalyzer . | . . . Garrison Access Hacks . | . . . Unauthorized Hacks . | . . . Terminals . | . . . Fabricators . | . . . Repair Stations . | . . . Recycling Units . | . . . Scanalyzers . | . . . Garrison Access . | . . . Data Cores Recovered . | . . . Used . | . . . Hacking Detections 5 | . 5 . Full Trace Events . | . . . Feedback Events . | . . . Feedback Blocked . | . . . Robot Schematics Acquired . | . . . Robots Built . | . . . Authchips . | . . . Time . | . . . Total Robot Build Rating . | . . . Part Schematics Acquired . | . . . Parts Built . | . . . Authchips . | . . . Time . | . . . Total Part Build Rating . | . . . Parts Repaired . | . . . Time . | . . . Parts Recycled . | . . . Recycled Matter . | . . . Retrieved Matter . | . . . Retrieved Components . | . . . Parts Scanalyzed . | . . . Part Schematics Acquired . | . . . Parts Damaged . | . . . Bothacking | -11 -10 -10 ------------ Run | Scr Mat Min Used RIF Installer . | . . . Robots Hacked . | . . . Non-combat . | . . . Combat . | . . . Robot Hacks Applied . | . . . Relay Couplers Released . | . . . Fabnet Peak Effective % . | . . . Robots Rewired . | . . . Allies Hacked . | . . . Hacks Repelled . | . . . Allies | -11 -10 -10 -------- Run | Scr Mat Min Total Allies . | . . . Largest Group . | . . . Highest-Rated Group . | . . . Highest-Rated Ally . | . . . Total Orders . | . . . Ally Attacks . | . . . Total Damage . | . . . Kills . | . . . Allies Corrupted . | . . . Allies Melted . | . . . Intel | -11 -10 -10 ------- Run | Scr Mat Min Robot Analysis Total . | . . . Derelict Logs Recovered 1 | . . 1 Drone Launches . | . . . Drone Recoveries . | . . . Exploration | -11 -10 -10 ------------- Run | Scr Mat Min Turns Passed 1958 | 94 1089 775 Spaces Moved 896 | 53 439 404 Core 6 | 6 . . Treads 584 | 47 439 98 Legs . | . . . Wheels 306 | . . 306 Hover . | . . . Flight . | . . . Fastest Speed 50 | 50 160 130 Average Speed 186 | 147 209 166 Slowest Speed 240 | 160 240 240 Overloaded Moves . | . . . Propulsion Burnouts . | . . . Robots Hopped . | . . . Cave-ins Triggered . | . . . Exploration Rate (%) 54 | 6 84 73 Regions Visited 2 Branch Regions 1 Pre-discovered Areas 2 | . . 2 Known Exits Taken 1 | . 1 . Unknown Exits Taken 1 | 1 . . Scrap Searched 1 | . . 1 Spaces Dug . | . . . Terrain Destroyed 5 | . . 5 Melee . | . . . Projectile . | . . . AOE 5 | . . 5 Terrain Rammed . | . . . Walls Destroyed . | . . . Machines Disabled . | . . . Actions | -11 -10 -10 --------- Run | Scr Mat Min Total 1052 | 67 524 461 Wait 16 | . 2 14 Move 894 | 52 438 404 Hop . | . . . Pick Up 36 | 9 22 5 Fast Attach 4 | 3 1 . Attach 14 | 3 1 10 Detach . | . . . Swap 4 | . 2 2 Drop 8 | . 8 . Fire 76 | . 50 26 Melee . | . . . Ram . | . . . Kick . | . . . Crush . | . . . Escape Stasis . | . . . Rewire . | . . . Trap . | . . . Miscellaneous . | . . . Route ------- -11/Scrapyard -10/Materials (discovered 5 exits: *Mat x3 / *Min x2) -10/Mines (discovered 2 exits: *Mat x2) History --------- Turn | Location | Event 35 | -11/Scrapyard | Discovered new exit (range 15) 95 | -11/Scrapyard | Entered Materials 329 | -10/Materials | Build established: Mutant 416 | -10/Materials | Discovered new exit (range 7) 672 | -10/Materials | Discovered new exit (range 4) 843 | -10/Materials | Identified exit to Mines 908 | -10/Materials | Discovered new exit (range 4) 1184 | -10/Materials | Entered Mines 1252 | -10/Mines | Assembled infested the area 1407 | -10/Mines | Discovered new exit (range 15) 1431 | -10/Mines | Discovered new exit (range 7) 1457 | -10/Mines | Core integrity fell below 50% 1475 | -10/Mines | Identified exit to Materials 1482 | -10/Mines | Lost 4 parts (1p2n1w) 1674 | -10/Mines | Core integrity fell below 20% 1702 | -10/Mines | Lost 3 parts (1n2w) 1709 | -10/Mines | Learned location of Storage (-9) 1959 | -10/Mines | Destroyed by S-10 Pest with Light Assault Rifle Last Messages --------------- security following our previous successful raids." World map updated: -9/Storage. 01711_ II-UY5(g): "We scattered so the Unaware couldn't effectively use their advantage in numbers, and I suggest you do the same." 01711_ II-UY5(g) slips back into the shadows. 01781_ S-10 Pest destroyed. 01796_ Acquired 10 matter. 01821_ Acquired derelict log, extracted data. World map confirmed: -9/Storage. 01849_ Com. Wheel destroyed. 01851_ Lgt. Treads destroyed. 01853_ G-47 Trooper destroyed. 01853_ Switching to secondary target: G-34 Mercenary. 01856_ G-34 Mercenary destroyed. 01863_ Acquired Aluminum Leg. 01865_ Acquired 20 matter. 01870_ Acquired Imp. Heat Sink. 01872_ Acquired Corrupted Particle Gun. 01875_ Acquired Ion Engine. 01950_ K-01 Serf collects debris. Map ----- +----------------------------------------------------+ | ??????????# ###### ##??????# ####?????? | | ?????????## #???## ######## #?????? | | ?????????# #????## ### #?????? | | ??####???# #?????# # ## #?????? | | ?## ##??# ##????## ### #?????? | | ?# ##?## ##?????# % ####??? | | ?# ##?# #??????# # ##?? | | ?## #### ##??????## # ##? | | ??## #### #????????##### % | | ???# #?# #??????????# | | ???## ### ############*% | | ????## ###### ######## | | ?????## ##### #############????####???????? | | ??????####???# #????????????????????????????? | | ?????????????#=#????????????????????????##??? | | ?????????????#*#????????????????????????# | | ?????????????#=#?????####???????????? | | ?????????????#%#????## ##???????????????""" | | ?????????????#[#???## ##??????????????""" | | ?????????????#%#?### #?????????????????? | | ?????????????#*### ######????????????? | | ?????????????#=## #????????????? | | ????????####?# s ### #????????????? | | ????##### ###### ##?# ???????????? | | ???## #???# ##??#####??????????? | | ???# ##??# k@ ##??????????????????? | | ???# ##?# ! ###???????????????????? | | ???# ###% ####?????????????????????? | | ???# ## %#????????????????????????? | | ???## ### ##???????????????????????? | | ???## ##?## #???????????????????????? | | ???# ##??## #???????????????????????? | | ???# ##??#### ##???????????????????????? | | ???# #?????####????????????????????????? | | ???## #?????????????????????????????????? | | ????### ##?????????????????????????????????? | | ??????####??????????????????????????????????? | | ????????????????????????????????????????????? | | ????????????????????????????????????????????? | | ????????????????????????????????????????????? | | ????????????????????????????????????????????? | | ????????????????????????????????????????????? | | ????????????????????????????????????????????? | | ????????????????????????????????????????????? | | ????????????????????????????????????????????? | | ????????????????????????????????????????????? | | ????????????????????????????????????????????? | | ????????????????????????????????????????????? | | ????????????????????????????????????????????? | | ????????????????????????????????????????????? | +----------------------------------------------------+ Best States ------------- Heat Dissipation 25 Energy Generation 10 Energy Capacity 250 Matter Stores 300 Matter Capacity 300 Sight Range 16 Terrain Scan Density 10 Evasion (%) 40 Targeting Accuracy 5 Recoil Reduction 2 Item Schematics ----------------- None Robot Schematics ------------------ None Fabricated ------------ Nothing Alien Tech Used ----------------- None Achievements -------------- None Challenges ------------ None Game ------ Seed DeliveryMatterBiocell Manual? 0 Play Time 00:22:13 Cumulative 14.5 hours Start 2021.12.07 @ 22:46:40 End 2021.12.07 @ 23:18:32 Sessions 1 Manual Loads 0 Difficulty Rogue Special Mode None Game No. 4 Rogue 4 Adventurer 0 Explorer 0 Win Type - Total 0 Types 0/0/0/0/0/0/0/0/0 Lore% 26 Gallery% 21 Achievement% 22 Wizard Run 0 Options --------- ASCII 0 Keyboard 0 Movement Mouse Keybinds 0 Fullscreen 1 Font 24/Smallcaps Map View 76x50 Tactical HUD 1 Map Filters NONE Filters NONE Steam 1 RUN: 5274be2d-1e45-4a44-9f76-5c25708128f0